Cogmind - Beta 14 @@@ ROGUE MODE // 2024.10.20 @ 14:49:23 Player: NextToZero Result: Destroyed by G-34 Mercenary with Small Laser Performance ------------- Evolutions (1) 500 Regions Visited (3) 600 Robots Destroyed (26) 130 Value Destroyed (635) 635 Prototype IDs (2) 40 Alien Tech Used (0) 0 Bonus (40) 40 TOTAL SCORE: 1945 Bonus ------- High Alert Combat Kills 40 Cogmind --------- Core Integrity 0/400 Matter 285/300 Energy 100/100 System Corruption 0% Temperature Cool (6) Movement Core (50) Location -9/Materials Parts ------- > --- POWER (2) -------- (None) > --- PROPULSION (2) --- (None) > --- UTILITY (2) ------ Targeting Computer > --- WEAPON (3) ------- (None) > --- INVENTORY (5) ---- Aluminum Leg Improved Heat Sink Small Matter Pod (50) Signal Interpreter Datajack Peak State ------------ > --- POWER ------------ Improved Ion Engine Improved Ion Engine > --- PROPULSION ------- Light Treads Backup Propulsion I > --- UTILITY ---------- Medium Storage Unit Backup Plating I > --- WEAPON ----------- Light Assault Rifle Mining Laser > --- INVENTORY -------- Improved Heat Sink Medium Battery Small Matter Pod Weight Redist. System Signal Interpreter Datajack [Rating: 10] Favorites ----------- Power Improved Ion Engine Engine Improved Ion Engine Propulsion Wheel Treads Light Treads Wheel Wheel Hover Unit Backup Propulsion I Utility Medium Storage Unit Device Terrain Scanner Storage Medium Storage Unit Processor Visual Processing Unit Protection Backup Plating I Weapon Light Assault Rifle Energy Gun Medium Laser Ballistic Gun Light Assault Rifle Launcher Grenade Launcher Special Weapon Mining Laser Build | -11 -10 -10 -9 ------- Run | Yrd Mat Min Mat Slots Evolved 2 | . . . 2 Power 1 | . . . 1 Propulsion . | . . . . Utility . | . . . . Weapon 1 | . . . 1 Parts Attached 26 | 6 8 1 11 Power 5 | 1 1 . 3 Engine 5 | 1 1 . 3 Core . | . . . . Reactor . | . . . . Propulsion 5 | 2 1 . 2 Treads 1 | . . . 1 Leg . | . . . . Wheel 4 | 2 1 . 1 Hover . | . . . . Flight . | . . . . Utility 5 | 1 3 . 1 Device 1 | . 1 . . Storage 2 | 1 1 . . Processor 2 | . 1 . 1 Hackware . | . . . . Protection . | . . . . Artifact . | . . . . Weapon 11 | 2 3 1 5 Energy Gun 2 | 2 . . . Energy Cannon . | . . . . Ballistic Gun 3 | . . . 3 Ballistic Cannon . | . . . . Launcher 2 | . 1 1 . Special Weapon 4 | . 2 . 2 Impact Weapon . | . . . . Slashing Weapon . | . . . . Piercing Weapon . | . . . . Special Melee Weapon . | . . . . Unidentified Prototypes . | . . . . Parts Lost 15 | . 2 1 12 Power 2 | . . . 2 Propulsion 3 | . . . 3 Utility 2 | . . . 2 Weapon 8 | . 2 1 5 Highest Loss Streak 5 | . 1 1 5 To Critical Strikes . | . . . . Average Slot Usage (%) 77 | . 95 100 56 Engine 13 | . 14 14 13 Treads 3 | . . . 7 Wheel 16 | . 28 28 2 Device 2 | . 3 14 . Storage 12 | . 14 14 9 Processor 4 | . 8 . . Protection 1 | . . . 2 Energy Gun 10 | . 22 . . Ballistic Gun 5 | . . . 11 Launcher 2 | . 3 14 . Special Weapon 3 | . . 14 5 Peak Build Rating 10 | 6 9 8 10 Average Rating 7 | 4 7 7 7 On Entrance 5 | . 6 8 7 Naked Turns 11 | . . . 11 Heaviest Build 27 | 14 19 18 27 Greatest Support 20 | 20 20 20 20 Greatest Overweight (x) 5 | . . . 5 Average Overweight (x) . | . . . . Largest Inventory Capacity 10 | 8 10 10 10 Average Capacity 8 | 6 8 10 9 Most Carried 10 | 1 8 10 9 Average Carried 6 | . 5 8 6 Final Capacity 10 | 8 10 10 5 Final Carried 10 | 1 8 10 5 Class Distribution -------------------- 62% | Mutant 24% | Scavenger-Mutant 11% | Skirmisher Dominant Class ---------------- Mutant | -10/Materials Mutant | -10/Mines Scavenger-Mutant | -9/Materials Resources | -11 -10 -10 -9 ----------- Run | Yrd Mat Min Mat Matter Collected 522 | 55 290 15 162 Remotely . | . . . . Salvage Created 891 | . 693 15 183 Parts 52 | . 38 4 10 Haulers Intercepted 1 | . 1 . . Recyclers Shooed 1 | . 1 . . Parts Field Recycled . | . . . . Retrieved Matter . | . . . . Parts Self-Destructed . | . . . . Prevented . | . . . . Kills | -11 -10 -10 -9 ------- Run | Yrd Mat Min Mat Combat Hostiles Destroyed 19 | . 11 3 5 Guns 11 | . 7 . 4 Cannons 1 | . . . 1 AOE 7 | . 4 3 . Classes Destroyed 6 | . 5 . 1 Hauler 1 | . 1 . . Recycler 3 | . 3 . . Watcher 3 | . 3 . . Swarmer 6 | . 3 3 . Grunt 11 | . 8 . 3 Sentry 2 | . . . 2 Best Kill Streak 4 | . 4 3 3 Combat Bots Only 3 | . 3 3 3 Max Kills in Single Turn 3 | . 2 3 1 Gunslinging . | . . . . Exploded 3 | . 1 3 . Melee . | . . . . Uniques/NPCs Destroyed . | . . . . Combat | -11 -10 -10 -9 -------- Run | Yrd Mat Min Mat Hostile Shots Fired 174 | . 49 4 121 Missed 44 | . 8 1 35 Damage Taken 1561 | . 451 25 1085 Core 524 | . 113 . 411 Absorbed by Shields . | . . . . Core Remaining (%) 77 | 100 . 54 . Volleys Fired 56 | . 34 1 21 Largest 3 | . 2 1 3 Hottest 140 | . 90 30 140 Shots Fired 95 | . 62 1 32 Gun 85 | . 57 . 28 Cannon . | . . . . Launcher 6 | . 5 1 . Special 4 | . . . 4 Kinetic 28 | . . . 28 Thermal 35 | . 31 . 4 Explosive 6 | . 5 1 . Electromagnetic 26 | . 26 . . Robot Hit Streak 19 | . 13 2 19 Robot Miss Streak 4 | . 4 . 2 Penetration Max . | . . . . Secondary Targets 2 | . 2 . . Max Gunslinging Chain 1 | . 1 . . Shots Hit Robots 66 | . 39 1 26 Core Hits 49 | . 34 3 12 Critical Kills . | . . . . Critical Parts Destroyed . | . . . . Critical Strikes . | . . . . Melee Attacks . | . . . . Impact . | . . . . Slashing . | . . . . Piercing . | . . . . Sneak Attacks . | . . . . Combat Hostiles . | . . . . Follow-up Attacks . | . . . . Damage Inflicted 1210 | . 823 140 247 Guns 721 | . 522 . 199 Cannons . | . . . . Explosions 441 | . 301 140 . Melee . | . . . . Ramming . | . . . . Kinetic 199 | . . . 199 Thermal 285 | . 237 . 48 Explosive 376 | . 236 140 . Electromagnetic 350 | . 350 . . Impact . | . . . . Slashing . | . . . . Piercing . | . . . . Highest Corruption . | . . . . Average Corruption . | . . . . Corruption Purged . | . . . . Corruption Blocked . | . . . . Overload Shots . | . . . . Overflow Damage . | . . . . Projectiles . | . . . . Explosions . | . . . . Melee . | . . . . Knockbacks . | . . . . Impact . | . . . . Kinetic . | . . . . Secondary . | . . . . Self-Inflicted Damage 4 | . 4 . . Shots 1 | . 1 . . Rammed . | . . . . Targets Rammed . | . . . . Kicked . | . . . . Crushed . | . . . . Highest Temperature 283 | . 283 . 108 Average Temperature 79 | . 90 . 46 Received Heat Transfer 741 | . 225 6 510 Effects 2 | . 2 . . Interference 2 | . 2 . . Siege Activations . | . . . . Robots Corrupted . | . . . . Combat Hostiles . | . . . . Parts Fried 2 | . 2 . . Impact Corruptions . | . . . . Robots Melted . | . . . . Combat Hostiles . | . . . . Parts Melted . | . . . . Heat Transferred 803 | . 703 . 100 Parts Sabotaged . | . . . . Parts Stolen . | . . . . Parts Stripped . | . . . . Power Chain Reactions . | . . . . Alert | -11 -10 -10 -9 ------- Run | Yrd Mat Min Mat Peak Influence 514 | . 514 292 197 Initial 200 | . . 200 109 Average 202 | . 261 287 150 Maximum Alert Level 2 | . 2 1 . Low Security (%) 62 | 100 30 . 100 Level 1 25 | . 43 100 . Level 2 12 | . 26 . . Level 3 . | . . . . Level 4 . | . . . . Level 5 . | . . . . High Security . | . . . . Max Security . | . . . . Squads Dispatched 5 | . 4 . 1 Investigation 4 | . 3 . 1 Extermination . | . . . . Reinforcement 1 | . 1 . . Assault . | . . . . Garrison . | . . . . Intercept . | . . . . Searches Triggered . | . . . . Construction Impeded . | . . . . Haulers Reinforced . | . . . . Active Scanning Responses . | . . . . Cargo Convoy Interrupts . | . . . . Stealth | -11 -10 -10 -9 --------- Run | Yrd Mat Min Mat Distress Signals 1 | . 1 . . Communications Jammed . | . . . . Distress Signals . | . . . . Times Spotted 32 | . 18 5 9 Peak Tracking Total 6 | . 6 3 3 Tactical Retreats 2 | . 2 . . Traps | -11 -10 -10 -9 ------- Run | Yrd Mat Min Mat Traps Triggered 1 | . . . 1 Indirectly . | . . . . Trap Hack Attempts . | . . . . Triggered . | . . . . Disarmed 4 | . 4 . . Reprogrammed 4 | . 4 . . Reused 1 | . 1 . . Traps Extracted . | . . . . Installed . | . . . . Triggered 1 | . 1 . . Machines | -11 -10 -10 -9 ---------- Run | Yrd Mat Min Mat Machines Disabled 3 | . 3 . . Max in Single Turn 2 | . 2 . . Machines Repaired . | . . . . Machines Dismantled . | . . . . Machines Sabotaged . | . . . . Overloaded Fab Kills . | . . . . Hacking | -11 -10 -10 -9 --------- Run | Yrd Mat Min Mat Machines Accessed 9 | . 6 . 3 Terminals 8 | . 6 . 2 Fabricators . | . . . . Repair Stations 1 | . . . 1 Recycling Units . | . . . . Scanalyzers . | . . . . Garrison Access . | . . . . Total Hacks 23 | . 19 . 4 Successful 12 | . 10 . 2 Failed 11 | . 9 . 2 Catastrophic 5 | . 3 . 2 Database Lockouts . | . . . . Manual . | . . . . Terminals 22 | . 19 . 3 Fabricators . | . . . . Repair Stations 1 | . . . 1 Recycling Units . | . . . . Scanalyzers . | . . . . Garrison Access . | . . . . Terminal Hacks 11 | . 10 . 1 Prototype ID Bank 1 | . 1 . . Repair Station Index 1 | . . . 1 Alert Level 1 | . 1 . . Locate Traps 1 | . 1 . . Disarm Traps 1 | . 1 . . Reprogram Traps 1 | . 1 . . Maintenance Status 1 | . 1 . . Registered Components 1 | . 1 . . Registered Prototypes 1 | . 1 . . Zone Layout 2 | . 2 . . Fabricator Hacks . | . . . . Repair Station Hacks 1 | . . . 1 Refit 1 | . . . 1 Recycling Unit Hacks . | . . . . Scanalyzer . | . . . . Garrison Access Hacks . | . . . . Unauthorized Hacks . | . . . . Terminals . | . . . . Fabricators . | . . . . Repair Stations . | . . . . Recycling Units . | . . . . Scanalyzers . | . . . . Garrison Access . | . . . . Data Cores Recovered . | . . . . Used . | . . . . Hacking Detections 7 | . 5 . 2 Full Trace Events 6 | . 5 . 1 Feedback Events . | . . . . Feedback Blocked . | . . . . Robot Schematics Acquired . | . . . . Robots Built . | . . . . Authchips . | . . . . Time . | . . . . Total Robot Build Rating . | . . . . Part Schematics Acquired . | . . . . Parts Built . | . . . . Authchips . | . . . . Time . | . . . . Total Part Build Rating . | . . . . Parts Repaired . | . . . . Time . | . . . . Parts Recycled . | . . . . Recycled Matter . | . . . . Retrieved Matter . | . . . . Retrieved Components . | . . . . Parts Scanalyzed . | . . . . Part Schematics Acquired . | . . . . Parts Damaged . | . . . . Bothacking | -11 -10 -10 -9 ------------ Run | Yrd Mat Min Mat Used RIF Installer . | . . . . Robots Hacked . | . . . . Non-combat . | . . . . Combat . | . . . . Robot Hacks Applied . | . . . . Relay Couplers Released . | . . . . Fabnet Peak Effective % . | . . . . Robots Rewired . | . . . . Allies Hacked . | . . . . Hacks Repelled . | . . . . Allies | -11 -10 -10 -9 -------- Run | Yrd Mat Min Mat Total Allies . | . . . . Largest Group . | . . . . Highest-Rated Group . | . . . . Highest-Rated Ally . | . . . . Total Orders . | . . . . Ally Attacks . | . . . . Total Damage . | . . . . Kills . | . . . . Allies Corrupted . | . . . . Allies Melted . | . . . . Intel | -11 -10 -10 -9 ------- Run | Yrd Mat Min Mat Robot Analysis Total . | . . . . Derelict Logs Recovered . | . . . . Drone Launches . | . . . . Drone Recoveries . | . . . . Exploration | -11 -10 -10 -9 ------------- Run | Yrd Mat Min Mat Turns Passed 759 | 31 356 36 336 Spaces Moved 544 | 28 296 36 184 Core 49 | 3 . . 46 Treads 93 | . . . 93 Legs . | . . . . Wheels 399 | 25 296 36 42 Hover 3 | . . . 3 Flight . | . . . . Fastest Speed 50 | 50 80 80 50 Average Speed 100 | 76 80 80 141 Slowest Speed 420 | 80 80 80 420 Overloaded Moves . | . . . . Propulsion Burnouts . | . . . . Robots Hopped . | . . . . Cave-ins Triggered . | . . . . Exploration Rate (%) 25 | 3 67 10 22 Regions Visited 3 Branch Regions 1 Pre-discovered Areas . | . . . . Known Exits Taken . | . . . . Unknown Exits Taken 3 | 1 1 1 . Scrap Searched . | . . . . Spaces Dug 1 | . . . 1 Terrain Destroyed 36 | . 27 7 2 Melee . | . . . . Projectile 2 | . . . 2 AOE 34 | . 27 7 . Terrain Rammed . | . . . . Walls Destroyed . | . . . . Machines Disabled . | . . . . Actions | -11 -10 -10 -9 --------- Run | Yrd Mat Min Mat Total 654 | 34 353 41 226 Wait . | . . . . Move 541 | 27 295 35 184 Hop . | . . . . Pick Up 20 | 1 11 3 5 Fast Attach 14 | 6 4 . 4 Attach 11 | . 4 . 7 Detach 1 | . 1 . . Swap 1 | . . 1 . Drop 10 | . 4 1 5 Fire 56 | . 34 1 21 Melee . | . . . . Ram . | . . . . Kick . | . . . . Crush . | . . . . Escape Stasis . | . . . . Rewire . | . . . . Trap . | . . . . Miscellaneous . | . . . . Route ------- -11/Scrapyard -10/Materials (discovered 2 exits: [*Min x2]) -10/Mines -9/Materials History --------- Turn | Location | Event 9 | -11/Scrapyard | Discovered new exit (range 15) 32 | -11/Scrapyard | Entered Materials 169 | -10/Materials | Discovered new exit (range 13) 349 | -10/Materials | Build established: Mutant 361 | -10/Materials | Discovered new exit (range 16) 388 | -10/Materials | Entered Mines 417 | -10/Mines | Discovered new exit (range 9) 424 | -10/Mines | Entered Materials 424 | -9/Materials | Evolved 2 slots: Power x1, Weapon x1 496 | -9/Materials | Lost 5 parts (1p1n1u2w) 725 | -9/Materials | Core integrity fell below 50% 754 | -9/Materials | Core integrity fell below 20% 760 | -9/Materials | Destroyed by G-34 Mercenary with Small Laser Last Messages --------------- 00656_ Acquired 40 matter. 00656_ R-06 Scavenger collects Aluminum Leg. 00657_ R-06 Scavenger collects Sml. Laser. 00657_ G-34 Mercenary destroyed. 00659_ R-06 Scavenger collects Ion Engine. 00662_ Acquired Aluminum Leg. 00663_ Dropped Backup Propulsion I. 00669_ Acquired 21 matter. 00709_ Lgt. Assault Rifle destroyed. 00716_ Backup Plating I destroyed. 00718_ Lgt. Treads destroyed. 00721_ Dropped Med. Storage Unit. 00728_ Dropped Imp. Ion Engine. 00733_ Connecting with Terminal... >>Index(Repair Stations) Found 2 repair stations. Downloaded coordinate data. 00734_ Acquired Com. Wheel. 00744_ Com. Wheel destroyed. 00749_ Acquired Targeting Computer. Map ----- +----------------------------------------------------+ | | | | | | | | | | | | | | | | | | | | | | | #######?????????????????????????????? | | # #???????######????????????????? | | # #???????# #????????????????? | | # #???????# T #????????????????? | | # ######### #????????????????? | | # """ + g + #????????????????? | | # """ # gg # #????????????????? | | # """ # # #????????????????? | | ####### + #????????????????? | | ??????# ######????????????????? | | ??????# #?????????????????????? | | ??????# #?????????????????????? | | ??????# #?????????????????????? | | ??????# * #######???????????????? | | ??????# @ +???????????????? | | ??????# ####???????????????? | | ??????# #??????????????????? | | ??????#!! ##+#??????????????????? | | ??????#! #?????????????????????? | | ??????# #?????????????????????? | | ??????# +?????????????????????? | | ?######+##+## #?????????????????????? | | # # #?????????????????????? | | # # #?????????????????????? | | # # #?????????????????????? | | # " " # #####?????????????????? | | # "" "" # #?????????????????? | | # "" "" # ########??????????? | | # """ """ + ????????? | | ? "" "" # ###???????????????? | | ??""" """ # #?????????????????? | | ??""" """ # #?????????????????? | | ???"" """ # #?????????????????? | | ???? " # ########?#????????? | | ???? # # #????????? | | ????######### # """"" #????????? | | ????????????# # """"" #????????? | | ????????????# # """"" #????????? | | ????????????# # #????????? | +----------------------------------------------------+ Best States ------------- Heat Dissipation 28 Energy Generation 19 Energy Capacity 430 Matter Stores 300 Matter Capacity 300 Sight Range 18 Terrain Scan Range 14 Terrain Scan Density 10 Armor Coverage 80 Evasion (%) 50 Targeting Accuracy 5 Recoil Reduction 1 Item Schematics ----------------- None Robot Schematics ------------------ None Fabricated ------------ Nothing Alien Tech Used ----------------- None Achievements -------------- None Challenges ------------ None Game ------ Seed MyomerMediumCompanion Manual? 0 Play Time 00:14:14 Cumulative 11.0 hours Start 2024.10.20 @ 14:29:36 End 2024.10.20 @ 14:49:23 Sessions 1 Manual Loads 0 Difficulty Rogue Special Mode None Game No. 18 Rogue 18 Adventurer 0 Explorer 0 Win Type - Total 0 Types 0/0/0/0/0/0/0/0/0 Lore% 10 Gallery% 22 Achievement% 17 Wizard Run 0 Options --------- Layout 0 ASCII 0 Keyboard 0 Movement Mouse Keybinds 0 Fullscreen 1 Font 36/Smallcaps Map View 38x25 Zoom Use 100% Tactical HUD 1 Map Filters NONE Filters NONE Steam 1 RUN: 7c8dedf5-a770-410d-a48c-6f541e00e1cc